bitfinex-derivatives/quotes_ETHF0:USTF0_20250927
["timestamp","ask_amount","ask_price","bid_price","bid_amount"]
[1758993827540,1.4460948,3992.4,3992.3,3.42467207]
[1758993827738,0.8980948,3992.4,3992.3,3.42467207]
[1758993827939,0.5501948,3992.4,3992.3,3.42467207]
[1758993839456,1.7904948,3992.4,3992.3,3.42467207]
[1758993839660,1.7904948,3992.4,3992.3,0.634]
[1758993840158,2.2410748,3992.4,3992.3,0.634]
[1758993840347,2.2410748,3992.4,3992.3,1.5025]
[1758993841061,2.2410748,3992.4,3992.3,1.9531]
[1758993841260,1.22699855,3992.4,3992.3,1.9531]
[1758993841463,1.67757855,3992.4,3992.3,0.374]
[1758993841666,1.2403,3992.1,3992.0,3.5436]
[1758993841855,1.2403,3992.1,3992.0,3.4678]
[1758993842256,1.2403,3992.1,3992.0,0.26]
[1758993842451,0.45067,3991.6,3991.5,4.99647207]
[1758993842660,1.69097,3991.6,3991.5,0.5958]
[1758993843861,1.2403,3991.6,3991.5,0.5958]
[1758993844262,1.2403,3991.6,3991.5,1.1019]
[1758993844565,1.2403,3991.6,3991.5,1.4643]
[1758993845467,1.45287207,3992.1,3992.0,0.3624]
[1758993845468,0.5054,3992.1,3992.0,0.3624]
[1758993845656,0.5054,3992.4,3992.1,0.5061]
[1758993845860,0.8751,3992.4,3992.3,2.65717207]
[1758993846060,1.2403,3992.4,3992.3,2.65717207]
[1758993846266,1.2403,3992.4,3992.3,1.2043]
[1758993847164,1.89813,3992.0,3991.9,0.3358]
[1758993847465,1.89813,3992.0,3991.9,1.4643]
[1758993848368,0.45066,3991.8,3991.6,5.61774207]
[1758993848668,1.66566,3991.8,3991.7,0.26]
[1758993849369,1.66566,3991.8,3991.7,0.5953]
[1758993850562,1.66566,3991.8,3991.6,3.2078]
[1758993850768,1.215,3991.7,3991.6,3.2078]
[1758993850963,1.215,3991.7,3991.6,3.4678]
[1758993851163,0.9801774,3991.7,3991.6,3.4678]
[1758993851578,0.9801774,3991.7,3991.6,4.6642]
[1758993852369,0.9801774,3991.7,3991.6,3.4678]
[1758993853165,1.52943525,3991.7,3991.6,3.4678]
[1758993853668,0.79735,3991.0,3990.9,0.3353]
[1758993853870,1.86915,3991.0,3990.9,0.5953]
[1758993854164,1.86915,3991.0,3990.9,1.1017]
[1758993854679,1.86915,3991.0,3990.7,3.2098656]
[1758993854680,1.66576,3990.8,3990.7,4.0515656]
[1758993855063,1.66576,3990.8,3990.7,4.3115656]
[1758993855865,2.43376824,3990.8,3990.7,0.0020656]
[1758993857364,6.98300824,3990.8,3990.3,0.5064]
[1758993857682,1.66581,3990.4,3990.3,0.8417]
[1758993857975,1.88564858,3990.4,3990.3,1.1017]
[1758993858175,1.66584,3990.1,3990.0,0.3353]
[1758993858374,1.88567858,3990.1,3990.0,0.5953]
[1758993858574,3.34131855,3990.1,3990.0,0.0030487]
[1758993858877,3.12147997,3990.1,3990.0,0.2630487]
[1758993859182,3.34503075,3990.1,3990.0,0.0030487]
[1758993859567,8.89185811,3990.1,3990.0,0.0030487]
[1758993860275,8.34503075,3990.1,3990.0,0.0030487]
[1758993862472,0.6762,3989.6,3989.5,1.6691]
[1758993862679,0.3296,3989.6,3989.5,1.6691]
[1758993863376,0.3296,3989.6,3989.5,1.67229698]
[1758993864179,1.228,3989.6,3989.5,1.67229698]
[1758993866682,0.3296,3989.6,3989.5,1.67229698]
[1758993867078,0.2034,3990.0,3989.5,1.67229698]
[1758993867079,0.3520679,3990.1,3990.0,1.3919]
[1758993867381,0.57484578,3990.1,3990.0,2.84477207]
[1758993867576,0.0027679,3990.1,3990.0,1.3919]
[1758993867975,0.3520679,3990.1,3990.0,1.3919]
[1758993869279,0.57492289,3990.1,3990.0,1.3919]
[1758993869776,1.11502289,3990.1,3990.0,1.3919]
[1758993870177,1.47332289,3990.1,3990.0,1.1921]
[1758993870383,1.47332289,3990.1,3990.0,1.4511]
[1758993870773,1.15849,3989.8,3989.7,0.80129]
[1758993870978,1.69859,3989.8,3989.7,1.56409]
[1758993871179,1.69859,3989.8,3989.7,1.90199]
[1758993872680,1.69859,3989.8,3989.7,1.1921]
[1758993872883,1.2477,3989.8,3989.7,1.4511]
[1758993873180,0.4536079,3990.1,3990.0,1.3919]
[1758993873488,1.02582751,3990.1,3990.0,1.3919]
[1758993873675,1.56592751,3990.1,3990.0,1.3919]
[1758993874876,1.92422751,3990.1,3990.0,1.1921]
[1758993875179,0.7076,3989.6,3989.5,0.85739698]
[1758993875383,1.6986,3989.6,3989.5,0.00319698]
[1758993875584,10.12924914,3989.6,3989.5,0.00319698]
[1758993875884,10.67475232,3989.6,3989.5,0.00319698]
[1758993877286,1.2477,3988.9,3988.8,1.1921]
[1758993877484,1.2477,3988.9,3988.8,1.4511]
[1758993878287,1.2477,3988.9,3988.8,1.45427183]
[1758993880584,1.47079385,3988.9,3988.8,1.45427183]
[1758993881386,1.23580052,3988.9,3988.8,1.45427183]
[1758993882883,1.68678052,3988.9,3988.8,1.45427183]
[1758993884383,0.69570052,3988.9,3988.8,1.90526183]
[1758993884981,1.14668052,3988.9,3988.8,1.19527183]
[1758993885178,1.68678052,3988.9,3988.8,1.19527183]
[1758993885383,1.68678052,3988.9,3988.8,1.45427183]
[1758993886185,1.68729032,3988.9,3988.8,1.45427183]
[1758993886777,0.69621032,3988.9,3988.8,1.45427183]
[1758993887092,0.69621032,3988.9,3988.8,1.90526183]
[1758993887392,1.24370847,3988.9,3988.8,1.90526183]
[1758993888083,0.69621032,3988.9,3988.8,1.90526183]
[1758993888283,1.24368914,3988.9,3988.8,1.90526183]
[1758993888684,0.69621032,3988.9,3988.8,1.90526183]
[1758993889892,0.69621032,3988.9,3988.8,1.45427183]
[1758993890393,1.23631032,3988.9,3988.8,1.45427183]
[1758993891092,0.69621032,3988.9,3988.8,1.45427183]
[1758993891396,1.24381185,3988.9,3988.8,1.45427183]
[1758993892197,0.69621032,3988.9,3988.8,1.45427183]
[1758993892491,1.24378453,3988.9,3988.8,1.90526183]
[1758993893192,0.69621032,3988.9,3988.8,1.90526183]
[1758993895692,0.69621032,3988.9,3988.8,1.19527183]
[1758993895894,1.67029032,3988.9,3988.8,1.45427183]
[1758993898780,2.21799633,3988.9,3988.8,1.45427183]
[1758993899196,2.21808305,3988.9,3988.8,1.45427183]
[1758993899396,2.21808305,3988.9,3988.8,1.19527183]
[1758993899598,2.21808305,3988.9,3988.8,1.45427183]
[1758993900699,2.21808305,3988.9,3988.8,1.11637183]
[1758993900903,2.21808305,3988.9,3988.8,0.85737183]
[1758993901192,2.21808305,3988.9,3988.8,1.11637183]
[1758993901788,2.21808305,3988.9,3988.8,1.45107183]
[1758993902292,1.30857,3988.1,3988.0,0.259]
[1758993902497,4.24301759,3988.1,3988.0,0.259]
[1758993902898,4.24301759,3988.1,3988.0,0.7583]
[1758993903101,4.24292177,3988.1,3988.0,0.76116268]
[1758993903293,4.24292177,3988.1,3988.0,0.50216268]
[1758993903491,4.24292177,3988.1,3988.0,0.76116268]
[1758993903891,4.24292177,3988.1,3988.0,0.50216268]
[1758993904192,4.24292177,3988.1,3988.0,0.83866268]
[1758993905097,4.24292177,3988.1,3988.0,1.43236268]
[1758993905902,4.24292177,3988.1,3988.0,0.00286268]
[1758993906099,4.24292177,3988.1,3988.0,0.50216268]
[1758993906300,4.24292177,3988.1,3988.0,0.83866268]
[1758993908599,1.97870056,3988.1,3988.0,1.17336268]
[1758993908798,0.22360365,3988.1,3988.0,1.37546268]
[1758993908994,3.2078,3988.6,3988.5,1.0479]
[1758993909196,3.9797602,3988.6,3988.5,1.3751]
[1758993909899,0.7719602,3988.6,3988.5,1.3751]
[1758993913507,1.0938602,3988.6,3988.5,1.6341]
[1758993913709,1.0938602,3988.6,3988.5,1.3751]
[1758993913900,1.6120602,3988.6,3988.5,1.6341]
[1758993914396,1.0938602,3988.6,3988.5,1.6341]
[1758993915005,0.22480375,3988.6,3988.5,1.6341]
[1758993916304,3.65871,3989.5,3989.1,0.45095]
[1758993916506,3.65871,3989.5,3989.4,1.62392]
[1758993916507,3.2078,3989.5,3989.4,1.62392]
[1758993917402,3.2078,3990.0,3989.9,1.173]
[1758993917614,3.2078,3990.0,3989.9,1.88287]
[1758993918401,0.0027679,3990.1,3989.9,6.88287]
[1758993918603,0.0027679,3990.1,3990.0,6.3751]
[1758993919010,0.0027679,3990.1,3990.0,1.6341]
[1758993924009,0.0027679,3990.1,3990.0,6.6341]
[1758993925717,0.0027679,3990.1,3990.0,1.6341]
[1758993926210,0.0027679,3990.1,3990.0,3.44725121]
[1758993926416,0.0027679,3990.1,3990.0,8.44725121]
[1758993927814,0.6914,3991.3,3991.2,1.1682]
[1758993928123,1.2046,3991.3,3991.2,1.4272]
[1758993928519,4.4124,3991.3,3991.2,1.0937]
[1758993928723,4.4124,3991.3,3991.2,0.259]
[1758993928923,4.41545952,3991.3,3991.2,0.26093723]
[1758993930226,4.41545952,3991.3,3991.2,1.09563723]
[1758993930524,5.86969946,3991.3,3991.2,1.09563723]
[1758993930827,4.41545952,3991.3,3991.2,1.09563723]
[1758993931123,5.86969946,3991.3,3991.2,1.09563723]
[1758993931428,2.66189946,3991.3,3991.2,1.09563723]
[1758993932923,0.00305952,3991.3,3991.2,1.42913723]
[1758993933335,0.00305952,3991.3,3991.2,5.08765723]
[1758993934121,0.00305952,3991.3,3991.2,4.82865723]
[1758993934323,0.00305952,3991.3,3991.2,5.08765723]
[1758993934628,0.00305952,3991.3,3991.2,4.82865723]
[1758993934927,0.00305952,3991.3,3991.2,5.08765723]
[1758993940131,0.00305952,3991.3,3991.2,4.82865723]
[1758993940327,0.35685952,3991.3,3991.2,6.54089717]
[1758993941531,0.35685952,3991.3,3991.2,6.28289717]
[1758993941725,1.20765952,3991.3,3991.2,6.54089717]
[1758993942226,0.69445952,3991.3,3991.2,6.54089717]
[1758993942926,0.35685952,3991.3,3991.2,6.54089717]
[1758993945029,0.35685952,3991.3,3991.2,6.28289717]
[1758993945232,0.35685952,3991.3,3991.2,6.54089717]
[1758993946227,0.00305952,3991.3,3991.2,5.08665723]
[1758993946529,0.00305952,3991.3,3991.2,6.54089717]
[1758993947936,0.87005952,3991.3,3991.2,5.08665723]
[1758993948119,0.35685952,3991.3,3991.2,5.08665723]
[1758993949323,0.35685952,3991.3,3991.2,1.87885723]
[1758993949721,0.80756952,3991.3,3991.2,1.42813723]
[1758993950239,0.80756952,3991.3,3989.5,1.27249745]
[1758993950240,0.4509,3989.6,3989.5,1.27249745]
[1758993950431,0.4509,3989.6,3988.5,0.5381]
[1758993950432,0.45101,3988.6,3988.5,0.5381]
[1758993950625,5.33781429,3988.6,3988.5,0.5381]
[1758993951430,10.33781429,3988.6,3988.5,0.11453095]
[1758993951637,11.79205423,3988.6,3988.4,0.263]
[1758993951835,0.45107,3988.1,3988.0,0.1923]
[1758993952039,5.33787429,3988.1,3988.0,0.4553]
[1758993952237,5.33787429,3988.1,3988.0,0.9442]
[1758993952535,3.88363435,3988.1,3988.0,0.9442]
[1758993952833,3.88672188,3988.1,3988.0,0.94726849]
[1758993953234,3.88672188,3988.1,3988.0,1.29306849]
[1758993955030,3.88672188,3988.1,3988.0,1.03006849]
[1758993955230,4.46015363,3988.1,3988.0,1.29306849]
[1758993955428,4.46015363,3988.1,3988.0,1.03006849]
[1758993955631,4.46015363,3988.1,3988.0,1.29306849]
[1758993957437,3.88672188,3988.1,3988.0,1.29306849]
[1758993958631,3.21088753,3988.1,3988.0,1.63806849]
[1758993968938,3.66195753,3988.1,3988.0,1.63806849]
[1758993974148,3.91210699,3988.1,3988.0,1.63806849]
[1758993976035,3.91210699,3988.1,3988.0,1.37506849]
[1758993976240,3.91210699,3988.1,3988.0,1.63606849]
[1758993976941,3.46103699,3988.1,3988.0,1.63606849]
[1758993977143,0.25400204,3988.1,3988.0,3.54335773]
[1758993977549,0.26310124,3988.1,3988.0,3.54335773]
[1758993978848,0.26343419,3988.1,3988.0,3.54335773]
[1758993982547,0.26343419,3988.1,3988.0,2.83127773]
[1758993982753,0.26343419,3988.1,3988.0,1.63606849]
[1758993983246,0.26343419,3988.1,3988.0,2.08714849]
[1758993983451,0.85319464,3988.1,3988.0,2.08714849]
[1758993984046,0.85319464,3988.1,3988.0,3.54335773]
[1758993985047,0.85319464,3988.1,3988.0,3.09227773]
[1758993985249,1.30426464,3988.1,3988.0,3.09227773]
[1758993985548,0.85319464,3988.1,3988.0,3.09227773]
[1758993985750,0.85319464,3988.1,3988.0,3.54335773]
[1758993986046,0.85354548,3988.1,3988.0,3.28235773]
[1758993986247,0.85354548,3988.1,3988.0,3.54335773]
[1758993986756,0.85354548,3988.1,3988.0,3.28235773]
[1758993987056,0.85354548,3988.1,3988.0,3.54235773]
[1758993987353,0.85354548,3988.1,3988.0,1.37506849]
[1758993987553,0.85354548,3988.1,3988.0,1.63506849]
[1758993988250,0.85354548,3988.1,3988.0,2.08614849]
[1758993988452,0.85354548,3988.1,3988.0,1.63506849]
[1758993989254,0.85354548,3988.1,3988.0,2.08614849]
[1758993990746,0.85354548,3988.1,3988.0,1.63506849]
[1758993990953,1.30461548,3988.1,3988.0,1.63506849]
[1758994000459,1.30461548,3988.1,3988.0,1.03006849]
[1758994000665,9.51241548,3988.1,3988.0,0.00306849]
[1758994000962,9.51241548,3988.1,3988.0,0.79066849]
[1758994001758,4.51241548,3988.1,3988.0,0.79066849]
[1758994002855,9.51241548,3988.1,3988.0,0.26206849]
[1758994003257,0.4513,3986.1,3986.0,2.24128997]
[1758994003460,0.356,3984.6,3984.5,0.9167]
[1758994003658,0.61740004,3984.6,3984.5,1.1787]
[1758994003966,1.21681147,3984.6,3984.5,1.1787]
[1758994004156,1.21874615,3984.6,3984.5,1.18095999]
[1758994004358,0.61933472,3984.6,3984.5,1.18095999]
[1758994005254,0.61933472,3984.6,3984.5,1.70955999]
[1758994006258,0.00193468,3984.6,3984.5,1.70955999]
[1758994006858,0.00193468,3984.6,3984.5,1.44755999]
[1758994007160,0.35793468,3984.6,3984.5,1.70955999]
[1758994007558,0.71033468,3984.6,3984.5,1.70955999]
[1758994007763,0.99047409,3984.6,3984.5,1.70955999]
[1758994008459,0.99047409,3984.6,3984.5,0.74135999]
[1758994008761,0.99047409,3984.6,3984.5,1.70955999]
[1758994009165,1.14493468,3984.6,3984.5,0.53085999]
[1758994009355,1.14493468,3984.6,3984.5,0.00225999]
[1758994009560,1.14493468,3984.6,3984.5,0.26425999]
[1758994009856,1.14493468,3984.6,3984.5,0.79285999]
[1758994010158,1.14493468,3984.6,3984.5,0.00225999]
[1758994010353,1.14493468,3984.6,3984.5,0.79285999]
[1758994011661,1.14493468,3984.6,3984.5,0.26425999]
[1758994011861,1.14493468,3984.6,3984.5,0.00225999]
[1758994012259,1.14493468,3984.6,3984.5,0.26425999]
[1758994012859,1.424041,3984.6,3984.5,0.26425999]
[1758994013057,0.7355,3984.1,3984.0,0.5499]
[1758994013260,0.7355,3984.1,3984.0,1.2017]
[1758994013261,0.80252,3984.1,3984.0,1.2017]
[1758994013761,0.80252,3984.1,3984.0,1.7989]
[1758994014262,0.80252,3984.1,3984.0,1.80145601]
[1758994014461,3.2078,3984.3,3984.1,0.5972]
[1758994014666,0.45340468,3984.6,3984.5,1.5447]
[1758994014868,0.73224889,3984.6,3984.5,1.8067]
[1758994015164,1.08324889,3984.6,3984.5,1.8067]
[1758994017471,0.28077889,3984.6,3984.5,1.8067]
[1758994017771,0.00193468,3984.6,3984.5,1.8067]
[1758994018262,0.28066912,3984.6,3984.5,1.8067]
[1758994019660,0.00193468,3984.6,3984.5,1.8067]
[1758994021266,3.2078,3985.1,3985.0,1.5447]
[1758994021464,3.48675436,3985.1,3985.0,2.25712]
[1758994021774,19.59696437,3985.1,3984.0,0.00255601]
[1758994021962,0.45166,3982.9,3981.8,3.2078]
[1758994022167,1.18,3982.5,3982.4,0.3394]
[1758994022367,1.45895436,3982.5,3982.4,0.6034]
[1758994022570,1.45895436,3982.5,3982.4,0.9932]
[1758994022958,1.45895436,3982.5,3982.4,0.99529816]
[1758994022959,1.46098049,3982.5,3982.4,0.99529816]
[1758994023159,1.46098049,3982.5,3982.4,0.73129816]
[1758994023363,1.84548049,3982.5,3982.4,0.99529816]
[1758994023771,0.28098049,3982.5,3982.4,1.35449816]
[1758994024162,0.28098049,3982.5,3982.4,8.16920817]
[1758994024467,0.00202613,3982.5,3982.4,8.16920817]
[1758994024667,0.00202613,3982.5,3982.4,6.35449816]
[1758994026973,0.5911,3983.5,3983.4,1.0884]
[1758994027174,0.5911,3983.5,3983.4,1.3524]
[1758994027871,0.59289564,3983.5,3983.4,1.3524]
[1758994028269,0.00179564,3983.5,3983.4,1.3524]
[1758994028474,0.00179564,3983.5,3983.4,6.3524]
[1758994030666,0.00179564,3983.5,3983.4,6.0884]
[1758994031065,0.00179564,3983.5,3983.4,45.5034]
[1758994032277,0.00179564,3983.5,3983.4,6.0884]
[1758994032478,0.00179564,3983.5,3983.4,45.5034]
[1758994032679,0.00179564,3983.5,3983.4,6.0884]
[1758994032977,0.00179564,3983.5,3983.4,45.5034]
[1758994033571,0.60157266,3983.5,3983.4,6.0884]
[1758994034172,0.00179564,3983.5,3983.4,45.5034]
[1758994034376,0.00179564,3983.5,3983.4,6.0884]
[1758994034568,0.59944182,3983.5,3983.4,45.5034]
[1758994034774,0.59944182,3983.5,3983.4,6.0884]
[1758994034973,0.59944182,3983.5,3983.4,45.5034]
[1758994035983,0.00179564,3983.5,3983.4,45.5034]
[1758994036384,0.5979,3984.3,3984.2,1.58751]
[1758994036575,0.86619248,3984.3,3984.2,1.85051]
[1758994037282,0.86897273,3984.3,3984.2,1.85051]
[1758994037882,0.86897273,3984.3,3984.2,5.05831]
[1758994038083,0.27131517,3984.3,3984.2,5.05831]
[1758994038277,0.27131517,3984.3,3984.2,10.05831]
[1758994038778,0.17266542,3984.3,3984.2,10.05831]
[1758994038973,0.2379,3985.5,3985.3,0.773]
[1758994038974,0.9858,3985.4,3985.3,0.773]
[1758994039173,1.56669631,3985.4,3985.3,1.036]
[1758994039379,1.56669631,3985.4,3985.3,1.48738]
[1758994039574,1.95919631,3985.4,3985.3,1.48738]
[1758994039883,1.96222801,3985.4,3985.3,1.49009843]
[1758994044380,1.3813317,3985.4,3985.3,1.49009843]
[1758994044585,1.3813317,3985.4,3985.3,3.30696765]
[1758994045287,1.3643317,3985.4,3985.3,2.85558765]
[1758994045686,1.94411267,3985.4,3985.3,0.26471843]
[1758994046282,1.3643317,3985.4,3985.3,0.26471843]
[1758994047584,6.3643317,3985.4,3985.3,0.26471843]
[1758994047883,1.3643317,3985.4,3985.3,0.26471843]
[1758994048088,1.3643317,3985.4,3985.3,0.66031843]
[1758994050892,1.62446933,3985.4,3985.3,0.66031843]
[1758994052687,1.62446933,3985.4,3985.3,2.11836925]
[1758994053086,1.62446933,3985.4,3985.3,2.56975925]
[1758994054293,1.62446933,3985.4,3985.3,2.93445925]
[1758994054594,0.86106933,3985.4,3985.3,3.28975925]
[1758994055095,1.25076933,3985.4,3985.3,3.28975925]
[1758994055288,0.86106933,3985.4,3985.3,3.28975925]
[1758994055993,0.26316933,3985.4,3985.3,3.28975925]
[1758994057199,0.0030317,3985.4,3985.3,3.28975925]
[1758994057494,0.5925317,3985.4,3985.3,42.42775925]
[1758994058188,0.0030317,3985.4,3985.3,42.42775925]
[1758994059700,0.0030317,3985.4,3985.3,42.42675925]
[1758994059888,0.0030317,3985.4,3985.3,42.42575925]
[1758994061197,0.0030317,3985.4,3985.3,3.02775925]
[1758994061402,0.0030317,3985.4,3985.3,42.42575925]
[1758994065204,0.0030317,3985.4,3985.3,42.42275925]
[1758994066102,0.0030317,3985.4,3985.3,43.88081007]
[1758994066295,1.2069,3986.0,3985.9,1.21162]
[1758994066502,1.46841441,3986.0,3985.9,2.92967082]
[1758994067201,0.26151441,3986.0,3985.9,3.28497082]
[1758994067504,0.2277,3986.5,3986.2,1.1156]
[1758994067699,0.3897,3986.9,3986.8,0.84682]
[1758994068004,0.3897,3986.9,3986.8,3.28487082]
[1758994068200,0.9792,3986.9,3986.8,3.28487082]
[1758994068603,0.98118344,3986.9,3986.8,3.28487082]
[1758994069407,0.98118344,3986.9,3986.8,42.41787082]
[1758994070609,0.98118344,3986.9,3986.8,42.06257082]
[1758994071302,0.98118344,3986.9,3986.8,42.41787082]
[1758994073704,0.59148344,3986.9,3986.8,42.41787082]
[1758994077606,0.00198344,3986.9,3986.8,42.41787082]
[1758994078004,0.551,3987.1,3987.0,1.21359]
[1758994078204,0.551,3987.1,3987.0,4.73349164]
[1758994079209,0.93822239,3987.1,3987.0,4.73349164]
[1758994079512,1.1946601,3987.1,3987.0,4.73349164]
[1758994080110,0.8101601,3987.1,3987.0,4.73349164]
[1758994080413,0.2591601,3987.1,3987.0,7.94129164]
[1758994080912,0.8101601,3987.1,3987.0,7.94129164]
[1758994081408,0.7853,3987.9,3987.8,1.7508]
[1758994081712,0.7853,3987.9,3987.8,3.46885082]
[1758994082507,0.78763619,3987.9,3987.8,2.93155082]
[1758994083512,1.33863619,3987.9,3987.8,2.93155082]
[1758994084213,1.33863619,3987.9,3987.8,3.58890316]
[1758994087111,0.45087,3989.9,3988.7,0.451]
[1758994087325,0.7633,3989.5,3989.4,2.37325082]
[1758994087523,0.7633,3989.5,3989.4,3.01775082]
[1758994088131,0.7657351,3989.5,3989.4,3.02019766]
[1758994089224,1.3596351,3989.5,3989.4,3.02019766]
[1758994089626,0.7657351,3989.5,3989.4,3.02019766]
[1758994091832,1.3596351,3989.5,3989.4,3.02019766]
[1758994096834,0.3869351,3989.5,3989.4,3.02019766]
[1758994097034,0.0024351,3989.5,3989.4,3.02019766]
[1758994097437,0.3789351,3989.5,3989.4,3.02019766]
[1758994097839,0.3789351,3989.5,3989.4,3.47111766]
[1758994098832,0.0024351,3989.5,3989.4,3.47111766]
[1758994106439,0.3649,3990.1,3990.0,1.5068]
[1758994106741,1.3038,3990.1,3990.0,3.22385082]
[1758994107647,0.00314177,3990.1,3990.0,3.67470082]
[1758994107848,0.45069,3991.5,3990.8,0.5442]
[1758994108046,0.6328,3991.4,3991.3,1.272]
[1758994108253,0.6328,3991.4,3991.3,1.531]
[1758994108843,0.6347513,3991.4,3991.3,1.531]
[1758994109045,0.0019513,3991.4,3991.3,2.98905082]
[1758994109446,0.0019513,3991.4,3991.3,3.06051479]
[1758994110748,0.0019513,3991.4,3991.3,2.98905082]
[1758994114553,0.0019513,3991.4,3991.3,3.3423954]
[1758994118061,6.40336052,3991.4,3991.3,0.9062]
[1758994118365,0.8305,3991.1,3991.0,0.779]
[1758994118561,0.6328,3991.1,3991.0,1.4]
[1758994118757,5.6328,3991.1,3991.0,1.4]
[1758994119462,0.6328,3991.1,3991.0,1.4]
[1758994119669,1.20372369,3991.1,3991.0,1.4]
[1758994120056,0.6328,3991.1,3991.0,1.7658]
[1758994120256,1.20372063,3991.1,3991.0,1.7658]
[1758994124467,1.20372063,3991.1,3991.0,2.21654]
[1758994124768,1.20372063,3991.1,3991.0,1.7658]
[1758994125265,1.65445063,3991.1,3991.0,1.7658]
[1758994134275,1.02165063,3991.1,3991.0,3.5771954]
[1758994134870,0.57092063,3991.1,3991.0,3.5771954]
[1758994135976,0.86572063,3991.1,3991.0,3.5771954]
[1758994136974,1.16052063,3991.1,3991.0,3.5771954]
[1758994139665,1.61125063,3991.1,3991.0,1.7658]
[1758994139866,1.79555063,3991.1,3991.0,0.779]
[1758994140071,1.79555063,3991.1,3991.0,1.4341]
[1758994140272,1.61125063,3991.1,3991.0,1.4341]
[1758994140682,1.79555063,3991.1,3991.0,1.4341]
[1758994141380,1.79555063,3991.1,3991.0,1.038]
[1758994142379,1.79555063,3991.1,3991.0,1.4341]
[1758994143274,1.61125063,3991.1,3991.0,1.4341]
[1758994144776,0.5896,3991.0,3990.9,0.9379]
[1758994145081,1.16052063,3991.0,3990.9,1.1969]
[1758994145775,1.16052063,3991.0,3990.9,1.5628]
[1758994146079,1.61126063,3991.0,3990.9,1.5628]
[1758994148984,1.61126063,3991.0,3990.9,0.8008]
[1758994148985,1.78576063,3991.0,3990.9,0.8008]
[1758994149386,1.78576063,3991.0,3990.9,1.1885]
[1758994149578,1.61126063,3991.0,3990.9,1.1885]
[1758994150485,1.61126063,3991.0,3990.9,1.5743]
[1758994150981,0.45088,3989.8,3989.7,0.0703749]
[1758994151187,0.7522,3989.6,3989.5,1.0083]
[1758994151378,0.57092063,3989.6,3989.5,1.0083]
[1758994151578,0.57092063,3989.7,3989.5,1.0083]
[1758994151880,0.95012063,3989.7,3989.6,1.0325]
[1758994152080,2.1353752,3989.7,3989.6,1.3042]
[1758994152385,1.88722063,3989.7,3989.6,1.1774]
[1758994152587,2.13517786,3989.7,3989.6,1.1774]
[1758994152786,1.88722063,3989.7,3989.6,1.1774]
[1758994152982,0.7522,3989.5,3989.4,0.53314684]
[1758994153187,2.13517977,3989.5,3989.4,0.79214684]
[1758994153593,2.13517977,3989.5,3989.4,1.17984684]
[1758994157295,1.56425914,3989.5,3989.4,1.17984684]
[1758994159104,0.24795914,3989.5,3989.4,3.37704224]
[1758994159298,3.2078,3989.8,3989.7,1.3042]
[1758994159505,3.2078,3989.8,3989.7,1.75509]
[1758994159998,3.2078,3989.8,3989.7,3.5664854]
[1758994161205,3.2078,3989.8,3989.7,1.75509]
[1758994161505,3.2078,3989.8,3989.7,3.8254854]
[1758994162304,0.45085,3990.1,3990.0,1.5237]
[1758994162503,3.2078,3990.2,3990.1,0.5307]
[1758994162706,0.4508,3990.5,3990.1,2.01404]
[1758994162907,0.45082,3990.4,3990.3,0.7203]
[1758994163108,0.83312,3990.4,3990.3,1.3006]
[1758994163699,0.83312,3990.4,3990.3,1.5596]
[1758994164411,1.19472,3990.4,3990.3,1.5596]
[1758994164813,3.2078,3990.6,3990.5,1.525]
[1758994166013,3.2078,3990.6,3990.5,3.3363954]
[1758994166609,0.45075,3990.9,3990.5,3.3363954]
[1758994166810,0.45077,3990.8,3990.7,0.7203]
[1758994167010,0.45077,3990.8,3990.7,1.5596]
[1758994167415,1.75497,3990.8,3990.7,1.5596]
[1758994167716,1.75497,3990.8,3990.7,1.199]
[1758994171519,0.45077,3990.8,3990.7,1.5596]
[1758994172712,0.83307,3990.8,3990.7,1.5596]
[1758994172919,1.19467,3990.8,3990.7,1.5596]
[1758994173112,1.75497,3990.8,3990.7,1.5596]
[1758994174020,1.75497,3990.8,3990.7,1.199]
[1758994178321,1.75499,3990.6,3990.5,0.5803]
[1758994178522,1.75499,3990.6,3990.5,0.8393]
[1758994178821,1.75499,3990.6,3990.5,1.199]
[1758994179415,1.75499,3990.6,3990.5,1.4234]
[1758994179716,1.19469,3990.6,3990.5,1.784]
[1758994179920,0.45079,3990.6,3990.5,3.23850361]
[1758994180615,0.45078,3990.7,3990.6,1.3006]
[1758994185222,1.19468,3990.7,3990.6,1.3006]
[1758994185423,1.75498,3990.7,3990.6,1.3006]
[1758994185925,1.19468,3990.7,3990.6,1.3006]
[1758994187324,1.76760351,3990.7,3990.6,1.3006]
[1758994193029,2.33370351,3990.7,3990.6,1.3006]
[1758994196434,0.57292351,3990.7,3990.6,1.75139]
[1758994196736,4.9468613,3991.4,3991.3,0.9328]
[1758994197031,4.9468613,3991.4,3991.3,0.8124]
[1758994197332,6.40136491,3991.4,3991.3,0.259]
[1758994197530,1.17102,3991.2,3991.1,0.5534]
[1758994197731,1.73716,3990.8,3990.7,0.5534]
[1758994197931,1.73716,3990.8,3990.7,0.8124]
[1758994198528,1.73716,3990.8,3990.7,0.5534]
[1758994198929,1.73716,3990.8,3990.7,0.8124]
[1758994199233,1.73716,3990.8,3990.7,1.1918]
[1758994199635,1.73716,3990.8,3990.7,1.5546]
[1758994201138,1.73716,3990.8,3990.7,0.8124]
[1758994201331,1.73719,3990.6,3990.5,0.5534]
[1758994201532,1.73719,3990.6,3990.5,0.8124]
[1758994201735,1.17113,3990.2,3990.1,1.4534]
[1758994201935,4.94503,3990.2,3990.1,1.7124]
[1758994202632,4.94503,3990.2,3990.1,0.9]
[1758994202842,4.94503,3990.2,3990.1,1.158]
[1758994203138,9.94503,3990.2,3990.1,0.9]
[1758994205747,1.73727,3989.9,3989.8,0.258]
[1758994205945,0.45091,3989.5,3989.4,0.00244684]
[1758994206140,1.9855081,3989.5,3989.4,0.55584684]
[1758994206342,1.9855081,3989.5,3989.4,0.81384684]
[1758994206543,1.9855081,3989.5,3989.4,0.55584684]
[1758994206745,1.17127,3989.0,3988.9,0.5534]
[1758994207048,1.9855681,3989.0,3988.9,0.8114]
[1758994207643,1.9855681,3989.0,3988.9,1.55646496]
[1758994207843,1.4194681,3989.0,3988.9,1.55646496]
[1758994208750,0.2481981,3989.0,3988.9,1.55646496]
[1758994211152,0.2481981,3989.0,3988.9,3.01096857]
[1758994211650,0.2481981,3989.0,3988.9,2.75296857]
[1758994211854,0.5927981,3989.0,3988.9,3.01096857]